bitfinex/quotes_BTCUSD_20250619
["timestamp","ask_amount","ask_price","bid_price","bid_amount"]
[1750292181418,0.54019064,104900.0,104890.0,0.42145677]
[1750292181894,0.54019064,104900.0,104890.0,0.41192325]
[1750292182346,0.53065776,104900.0,104890.0,0.0471]
[1750292182563,0.53065776,104900.0,104890.0,0.2025]
[1750292184263,0.62680698,104900.0,104890.0,0.20274]
[1750292184468,4.20957432,104900.0,104890.0,0.0471]
[1750292184716,4.33819645,104900.0,104890.0,0.0471]
[1750292184947,0.5855504,104890.0,104880.0,0.0001]
[1750292185203,4.1030219,104870.0,104860.0,0.0538]
[1750292185451,4.25921684,104870.0,104860.0,0.0538]
[1750292185666,4.21925684,104870.0,104860.0,0.0538]
[1750292185931,4.21925684,104870.0,104860.0,0.26360326]
[1750292185932,0.58215592,104870.0,104860.0,0.26360326]
[1750292186150,0.55931805,104870.0,104860.0,0.0538]
[1750292186378,0.54978308,104870.0,104860.0,0.21076]
[1750292186594,0.54024783,104870.0,104860.0,0.21076]
[1750292187058,0.54024783,104870.0,104860.0,0.21284]
[1750292187270,0.54024783,104870.0,104860.0,0.06533643]
[1750292187495,0.54024783,104870.0,104860.0,0.2138]
[1750292187928,0.54024783,104870.0,104860.0,0.0568]
[1750292188559,4.09348683,104870.0,104860.0,0.0568]
[1750292189406,4.22968859,104870.0,104860.0,0.0568]
[1750292189826,4.23636537,104870.0,104860.0,0.0568]
[1750292190041,4.35530162,104870.0,104860.0,0.0568]
[1750292190251,4.35529485,104870.0,104860.0,0.0568]
[1750292190469,4.35529485,104870.0,104860.0,0.0031]
[1750292190694,4.3698357,104870.0,104860.0,0.0031]
[1750292191190,4.39873513,104870.0,104860.0,0.0031]
[1750292191460,4.90782906,104870.0,104860.0,0.0031]
[1750292192369,4.89003513,104870.0,104860.0,0.0031]
[1750292192596,5.04719513,104870.0,104860.0,0.0031]
[1750292196898,5.07586913,104870.0,104860.0,0.0031]
[1750292199934,5.10486913,104870.0,104860.0,0.0031]
[1750292200163,5.07586913,104870.0,104860.0,0.0031]
[1750292200816,5.07586913,104870.0,104860.0,0.0332]
[1750292202236,5.07586913,104870.0,104860.0,0.0621]
[1750292203622,5.07598913,104870.0,104860.0,0.0621]
[1750292205538,5.06931235,104870.0,104860.0,0.0621]
[1750292205746,5.07596948,104870.0,104860.0,0.0621]
[1750292207881,4.80250228,104870.0,104860.0,0.0621]
[1750292208100,4.77972202,104870.0,104860.0,0.0621]
[1750292208307,4.77972202,104870.0,104860.0,0.26236692]
[1750292208543,4.77972202,104870.0,104860.0,0.07163652]
[1750292208748,4.77972202,104870.0,104860.0,0.0621]
[1750292210574,4.78639786,104870.0,104860.0,0.0621]
[1750292210790,1.13024126,104870.0,104860.0,0.27190326]
[1750292211002,1.13024126,104870.0,104860.0,0.26236701]
[1750292211233,1.13024126,104870.0,104860.0,0.27190344]
[1750292211433,1.13024126,104870.0,104860.0,0.28143978]
[1750292212371,1.13024126,104870.0,104860.0,0.27190344]
[1750292213143,1.12070574,104870.0,104860.0,0.26236701]
[1750292213356,1.12070574,104870.0,104860.0,0.07163652]
[1750292213791,1.12739605,104870.0,104860.0,0.07163652]
[1750292214198,1.15022724,104870.0,104860.0,0.07163652]
[1750292215202,1.15022724,104870.0,104860.0,0.0621]
[1750292216409,1.08974333,104870.0,104860.0,0.27190326]
[1750292216621,1.06106933,104870.0,104860.0,0.27190326]
[1750292217305,0.87989227,104870.0,104860.0,0.2909753]
[1750292217541,0.84083479,104870.0,104860.0,0.4479353]
[1750292217760,0.85036976,104870.0,104860.0,0.4479353]
[1750292218188,0.84083479,104870.0,104860.0,0.4479353]
[1750292218408,0.86943989,104870.0,104860.0,0.4479353]
[1750292218913,0.34,104870.0,104860.0,0.54417706]
[1750292219141,0.01906859,104880.0,104870.0,0.27258253]
[1750292219142,0.34953388,104880.0,104870.0,0.27258253]
[1750292219388,0.34,104880.0,104870.0,0.27258253]
[1750292220068,0.37813681,104880.0,104870.0,0.27258253]
[1750292220320,0.55929759,104880.0,104870.0,0.0628]
[1750292220549,0.54976334,104880.0,104870.0,0.22957561]
[1750292220774,0.54022882,104880.0,104870.0,0.22108]
[1750292221048,0.54022882,104880.0,104870.0,0.43086335]
[1750292221255,0.54022882,104880.0,104870.0,0.23061561]
[1750292221492,0.54022882,104880.0,104870.0,0.43086344]
[1750292222154,0.53069412,104880.0,104870.0,0.23161561]
[1750292222366,0.53069412,104880.0,104870.0,0.24115113]
[1750292222583,0.53069412,104880.0,104870.0,0.44139887]
[1750292222804,0.53069412,104880.0,104870.0,0.45093421]
[1750292223018,0.53069412,104880.0,104870.0,0.44139887]
[1750292223530,0.53069412,104880.0,104870.0,0.45093412]
[1750292223959,0.34953434,104880.0,104870.0,0.46046854]
[1750292224177,0.34953406,104880.0,104870.0,0.46046854]
[1750292224381,0.37813744,104880.0,104870.0,0.46046854]
[1750292224892,0.56883156,104880.0,104870.0,0.45093357]
[1750292225604,0.56883156,104880.0,104870.0,0.44139851]
[1750292225809,0.56883156,104880.0,104870.0,0.45093357]
[1750292226020,0.37813744,104880.0,104870.0,0.46046854]
[1750292227197,0.37813744,104880.0,104870.0,0.30318854]
[1750292227381,0.37813744,104880.0,104870.0,0.46046854]
[1750292227591,0.37813744,104880.0,104870.0,0.45798854]
[1750292227804,0.37813744,104880.0,104870.0,0.30070854]
[1750292228026,0.37813744,104880.0,104870.0,0.45790854]
[1750292228243,0.38767214,104880.0,104870.0,0.45790854]
[1750292228689,0.36860274,104880.0,104870.0,0.45790854]
[1750292229122,0.37813726,104880.0,104870.0,0.45790854]
[1750292229344,0.38767187,104880.0,104870.0,0.45782854]
[1750292229804,0.38767187,104880.0,104870.0,0.30070854]
[1750292229993,0.38767251,104880.0,104870.0,0.45782854]
[1750292230548,0.38767251,104880.0,104870.0,0.30070854]
[1750292230753,0.37813781,104880.0,104870.0,0.45782854]
[1750292230956,0.3686032,104880.0,104870.0,0.45782854]
[1750292231168,0.34953416,104880.0,104870.0,0.45782854]
[1750292231801,0.34,104880.0,104870.0,0.45782854]
[1750292232013,0.34,104880.0,104870.0,0.5540703]
[1750292233054,0.34953388,104880.0,104870.0,0.5540703]
[1750292233266,0.34,104880.0,104870.0,0.5540703]
[1750292233688,0.34953388,104880.0,104870.0,0.5540703]
[1750292233899,0.35906794,104880.0,104870.0,0.5540703]
[1750292234156,0.36860228,104880.0,104870.0,0.5540703]
[1750292235105,0.36860219,104880.0,104870.0,0.5540703]
[1750292235719,0.37813653,104880.0,104870.0,0.5540703]
[1750292235921,0.36860219,104880.0,104870.0,0.5540703]
[1750292236140,0.38767114,104880.0,104870.0,0.30070854]
[1750292236348,0.38767114,104880.0,104870.0,0.45774854]
[1750292238073,0.37813717,104880.0,104870.0,0.45774854]
[1750292238900,0.36860265,104880.0,104870.0,0.45774854]
[1750292239878,0.37813717,104880.0,104870.0,0.45774854]
[1750292240103,0.36860265,104880.0,104870.0,0.45774854]
[1750292240745,0.34953406,104880.0,104870.0,0.45774854]
[1750292240953,0.35906831,104880.0,104870.0,0.45774854]
[1750292241179,0.36860274,104880.0,104870.0,0.45774854]
[1750292241384,0.35906831,104880.0,104870.0,0.45774854]
[1750292241817,0.36860274,104880.0,104870.0,0.45774854]
[1750292242039,0.35906831,104880.0,104870.0,0.45774854]
[1750292242255,0.36860274,104880.0,104870.0,0.45774854]
[1750292244418,0.34953397,104880.0,104870.0,0.5539903]
[1750292244623,0.35906803,104880.0,104870.0,0.5539903]
[1750292244824,0.36860228,104880.0,104870.0,0.5539903]
[1750292245040,0.35906803,104880.0,104870.0,0.5539903]
[1750292245270,0.36860219,104880.0,104870.0,0.5539903]
[1750292245870,0.35906803,104880.0,104870.0,0.5539903]
[1750292246078,0.36860228,104880.0,104870.0,0.5539903]
[1750292246299,0.3781368,104880.0,104870.0,0.5539903]
[1750292246487,0.37813671,104880.0,104870.0,0.5539903]
[1750292247706,0.36860228,104880.0,104870.0,0.5539903]
[1750292248514,0.35906803,104880.0,104870.0,0.5539903]
[1750292248942,0.34953397,104880.0,104870.0,0.5539903]
[1750292249398,0.34,104880.0,104870.0,0.5539903]
[1750292250900,0.26680877,104910.0,104890.0,0.2192755]
[1750292251103,0.3590645,104900.0,104890.0,0.2795755]
[1750292251319,0.38865075,104900.0,104890.0,0.4361755]
[1750292251729,0.39818336,104900.0,104890.0,0.4361755]
[1750292252050,0.40771606,104900.0,104890.0,0.42664253]
[1750292252260,0.41724894,104900.0,104890.0,0.42664253]
[1750292252506,0.40771606,104900.0,104890.0,0.42664253]
[1750292253089,0.41724885,104900.0,104890.0,0.42664253]
[1750292253224,0.60790661,104900.0,104890.0,0.42664307]
[1750292253437,0.5793095,104900.0,104890.0,0.41706964]
[1750292253617,0.5793095,104900.0,104890.0,0.42660325]
[1750292253815,0.57930585,104900.0,104890.0,0.42660325]
[1750292254033,0.54020973,104890.0,104880.0,0.26865694]
[1750292254246,0.54020973,104890.0,104880.0,0.42537694]
[1750292254448,0.56880984,104890.0,104880.0,0.43491119]
[1750292255160,0.56880984,104890.0,104880.0,0.44444535]
[1750292255541,0.56880984,104890.0,104880.0,0.44644535]
[1750292255993,0.56880984,104890.0,104880.0,0.44844535]
[1750292256424,0.3781339,104890.0,104880.0,0.45797941]
[1750292257118,0.36860011,104890.0,104880.0,0.45797941]
[1750292257861,0.37813372,104890.0,104880.0,0.45797941]
[1750292258420,0.36860011,104890.0,104880.0,0.45797941]
[1750292258864,0.34,104890.0,104880.0,0.45797941]
[1750292259077,0.34,104890.0,104880.0,0.55422117]
[1750292267727,0.75923451,104910.0,104900.0,0.23872325]
[1750292267934,0.60723425,104910.0,104900.0,0.40481577]
[1750292268357,0.60723375,104910.0,104900.0,0.40481577]
[1750292268577,0.60723375,104910.0,104900.0,0.43211577]
[1750292268781,0.41659407,104910.0,104900.0,0.45118054]
[1750292268997,0.41759407,104910.0,104900.0,0.45118054]
[1750292269210,0.40053031,104910.0,104900.0,0.45117991]
[1750292269426,0.41066902,104910.0,104900.0,0.45117991]
[1750292269635,0.40113723,104910.0,104900.0,0.45117991]
[1750292269836,0.41066911,104910.0,104900.0,0.45117991]
[1750292270051,0.40113732,104910.0,104900.0,0.45117991]
[1750292270277,0.41066911,104910.0,104900.0,0.45117991]
[1750292270501,0.40113732,104910.0,104900.0,0.45117991]
[1750292270696,0.41066911,104910.0,104900.0,0.45117991]
[1750292271115,0.40113732,104910.0,104900.0,0.45117991]
[1750292271923,0.39160571,104910.0,104900.0,0.45117991]
[1750292272179,0.38207428,104910.0,104900.0,0.45117991]
[1750292272399,0.343,104910.0,104900.0,0.54742167]
[1750292272829,0.003,104910.0,104900.0,0.54742167]
[1750292273317,0.343,104910.0,104900.0,0.54742167]
[1750292273529,0.341,104910.0,104900.0,0.54742167]
[1750292273970,0.02853984,104920.0,104910.0,0.63147527]
[1750292274196,0.02853984,104920.0,104910.0,1.44809263]
[1750292274420,0.02853984,104920.0,104910.0,1.49809263]
[1750292274629,0.03810312,104930.0,104920.0,0.27691353]
[1750292274840,0.03810312,104930.0,104920.0,0.93090309]
[1750292275265,0.03810312,104930.0,104920.0,1.01827201]
[1750292275469,0.03810312,104930.0,104920.0,1.03281286]
[1750292275900,0.03810312,104930.0,104920.0,1.03781286]
[1750292276110,0.03810312,104930.0,104920.0,1.02709799]
[1750292276377,0.03810312,104930.0,104920.0,0.59017614]
[1750292276595,0.03810312,104930.0,104920.0,0.95636394]
[1750292277014,0.03810312,104930.0,104920.0,0.75888394]
[1750292277223,0.03810312,104930.0,104920.0,0.95636394]
[1750292280182,0.03810312,104930.0,104920.0,0.75888394]
[1750292280381,0.03810312,104930.0,104920.0,0.95652394]
[1750292280613,0.03810312,104930.0,104920.0,0.58183529]
[1750292280843,0.03810312,104930.0,104920.0,0.42495529]
[1750292281057,0.03810312,104930.0,104920.0,0.32645529]
[1750292281263,0.03810312,104930.0,104920.0,0.48333529]
[1750292281678,0.04763246,104930.0,104920.0,0.48333529]
[1750292281885,0.03810312,104930.0,104920.0,0.48333529]
[1750292282364,0.03810312,104930.0,104920.0,0.32645529]
[1750292282573,0.05716216,104930.0,104920.0,0.32645529]
[1750292282797,0.07622184,104930.0,104920.0,0.38709353]
[1750292282998,0.06669186,104930.0,104920.0,0.38709353]
[1750292283242,0.07622175,104930.0,104920.0,0.38709353]
[1750292283447,0.06669186,104930.0,104920.0,0.38709353]
[1750292283647,0.07622165,104930.0,104920.0,0.38209353]
[1750292284225,0.08575154,104930.0,104920.0,0.38509353]
[1750292284655,0.08075154,104930.0,104920.0,0.38509353]
[1750292284863,0.07122165,104930.0,104920.0,0.38509353]
[1750292285068,0.06169186,104930.0,104920.0,0.38509353]
[1750292285302,0.05216216,104930.0,104920.0,0.38509353]
[1750292285538,0.03310312,104930.0,104920.0,0.37909353]
[1750292285763,0.04263255,104930.0,104920.0,0.43919353]
[1750292285985,0.05216216,104930.0,104920.0,0.25301353]
[1750292286218,0.05216216,104930.0,104920.0,0.40981353]
[1750292288461,0.04263255,104930.0,104920.0,0.40981353]
[1750292288697,0.05216216,104930.0,104920.0,0.38301353]
[1750292289159,0.06169186,104930.0,104920.0,0.38301353]
[1750292289369,0.05216216,104930.0,104920.0,0.38301353]
[1750292290016,0.04263255,104930.0,104920.0,0.38301353]
[1750292290228,0.05216207,104930.0,104920.0,0.38301353]
[1750292290631,0.06169177,104930.0,104920.0,0.38301353]
[1750292291108,0.05216207,104930.0,104920.0,0.38301353]
[1750292291672,0.06169186,104930.0,104920.0,0.38301353]
[1750292292097,0.07122184,104930.0,104920.0,0.38301353]
[1750292292305,0.08827916,104930.0,104920.0,0.37904527]
[1750292292523,0.08827907,104930.0,104920.0,0.37904527]
[1750292293792,0.06921994,104930.0,104920.0,0.37904527]
[1750292294010,0.06921985,104930.0,104920.0,0.37904527]
[1750292294230,0.05969042,104930.0,104920.0,0.37904527]
[1750292294706,0.06921976,104930.0,104920.0,0.37904527]
[1750292294930,0.05969042,104930.0,104920.0,0.37904527]
[1750292295154,0.05969042,104930.0,104920.0,0.43334527]
[1750292295364,0.05969042,104930.0,104920.0,0.4277831]
[1750292296460,0.05969042,104930.0,104920.0,0.4276631]
[1750292296653,0.05969042,104930.0,104920.0,0.43719353]
[1750292297061,0.05969042,104930.0,104920.0,0.28051353]
[1750292297293,0.05969042,104930.0,104920.0,0.43715353]
[1750292297721,0.05969042,104930.0,104920.0,0.43711353]
[1750292300190,0.06921994,104930.0,104920.0,0.43711353]
[1750292301451,0.07874964,104930.0,104920.0,0.43711353]
[1750292302546,0.07874964,104930.0,104920.0,0.41081353]
[1750292302759,0.06921994,104930.0,104920.0,0.41081353]
[1750292303214,0.05969042,104930.0,104920.0,0.41081353]
[1750292303426,0.05969042,104930.0,104920.0,0.43941353]
[1750292303676,0.06921985,104930.0,104920.0,0.43941353]
[1750292303865,0.05969042,104930.0,104920.0,0.43941353]
[1750292304544,0.06921976,104930.0,104920.0,0.43941353]
[1750292304765,0.2884123,104930.0,104920.0,0.2071524]
[1750292304978,0.44733912,104930.0,104920.0,0.38265353]
[1750292305861,0.44733912,104930.0,104920.0,0.22621353]
[1750292306113,0.44733912,104930.0,104920.0,0.38273353]
[1750292306366,0.64558388,104930.0,104920.0,0.20715249]
[1750292306599,0.68117301,104930.0,104920.0,0.37320337]
[1750292307065,0.67448388,104930.0,104920.0,0.38273416]
[1750292307298,0.61888388,104930.0,104920.0,0.39226486]
[1750292307537,0.4254423,104930.0,104920.0,0.40179474]
[1750292307999,0.44450171,104930.0,104920.0,0.40179474]
[1750292309005,0.44450235,104930.0,104920.0,0.39226431]
[1750292309706,0.47130258,104930.0,104920.0,0.39226431]
[1750292310156,0.46177251,104930.0,104920.0,0.40179474]
[1750292310164,0.47130258,104930.0,104920.0,0.40179474]
[1750292310406,0.46177251,104930.0,104920.0,0.40179474]
[1750292310638,0.44450926,104930.0,104920.0,0.40179474]
[1750292311101,0.44450935,104930.0,104920.0,0.40179474]
[1750292312048,0.41591914,104930.0,104920.0,0.42839474]
[1750292312291,0.42544875,104930.0,104920.0,0.45689474]
[1750292312532,0.39969042,104930.0,104920.0,0.5531365]
[1750292313947,0.40921985,104930.0,104920.0,0.5531365]
[1750292314205,0.39969042,104930.0,104920.0,0.5531365]
[1750292314474,0.05969042,104930.0,104920.0,0.5531365]
[1750292333897,0.05969042,104930.0,104920.0,0.3966165]
[1750292334125,0.27888278,104930.0,104920.0,0.29386318]
[1750292334338,0.31451294,104930.0,104920.0,0.47857547]
[1750292334547,0.31451294,104930.0,104920.0,0.48810599]
[1750292334758,0.31451294,104930.0,104920.0,0.21668319]
[1750292334966,0.14087953,104930.0,104920.0,0.39186423]
[1750292335185,0.1504096,104930.0,104920.0,0.39186432]
[1750292335395,0.1504096,104930.0,104920.0,0.40139475]
[1750292335626,0.10484955,104930.0,104920.0,0.40139475]
[1750292335830,0.11437944,104930.0,104920.0,0.40139475]
[1750292336877,0.12390942,104930.0,104920.0,0.40139475]
[1750292338504,0.12390942,104930.0,104920.0,0.23574432]
[1750292338710,0.67338324,104930.0,104920.0,0.3632323]
[1750292338914,0.66385354,104930.0,104920.0,0.17261107]
[1750292339132,0.66385354,104930.0,104920.0,0.18214205]
[1750292339334,0.66385354,104930.0,104920.0,0.37276347]
[1750292339758,0.66385354,104930.0,104920.0,0.20715249]
[1750292339976,0.65432365,104930.0,104920.0,0.16308]
[1750292340399,0.65432365,104930.0,104920.0,0.3632324]
[1750292340644,0.65432365,104930.0,104920.0,0.38229407]
[1750292341292,0.65432365,104930.0,104920.0,0.23574477]
[1750292341523,0.65432365,104930.0,104920.0,0.39182477]
[1750292342191,0.65432365,104930.0,104920.0,0.38229407]
[1750292343462,0.4637204,104930.0,104920.0,0.38229407]
[1750292343695,0.45437953,104930.0,104920.0,0.40135502]
[1750292344601,0.42827953,104930.0,104920.0,0.40135502]
[1750292344830,0.4378096,104930.0,104920.0,0.40135502]
[1750292345580,0.42827953,104930.0,104920.0,0.40135502]
[1750292347454,0.42827944,104930.0,104920.0,0.42855502]
[1750292347667,0.43780942,104930.0,104920.0,0.45505502]
[1750292347886,0.43780942,104930.0,104920.0,0.42855502]
[1750292348302,0.43780942,104930.0,104920.0,0.40135502]
[1750292349577,0.41874955,104930.0,104920.0,0.43005502]
[1750292349791,0.42827953,104930.0,104920.0,0.43005502]
[1750292350297,0.40921976,104930.0,104920.0,0.45765502]
[1750292350713,0.42827889,104930.0,104920.0,0.45765502]
[1750292352351,0.43780868,104930.0,104920.0,0.45765502]
[1750292352872,0.41874919,104930.0,104920.0,0.45765502]
[1750292353081,0.4282788,104930.0,104920.0,0.45765502]
[1750292353283,0.43780869,104930.0,104920.0,0.45765502]
[1750292353967,0.43780859,104930.0,104920.0,0.45765502]
[1750292354201,0.4282788,104930.0,104920.0,0.45765502]
[1750292354416,0.43780859,104930.0,104920.0,0.45765502]
[1750292355425,0.41874919,104930.0,104920.0,0.45765502]
[1750292355643,0.42827871,104930.0,104920.0,0.45765502]
[1750292355919,0.05969042,104930.0,104920.0,0.45765502]
[1750292356135,0.05969042,104930.0,104920.0,0.55389678]
[1750292360968,0.07874955,104930.0,104920.0,0.31292459]
[1750292361190,0.08827934,104930.0,104920.0,0.38241353]
[1750292361423,0.07874955,104930.0,104920.0,0.38241353]
[1750292361635,0.06921985,104930.0,104920.0,0.38241353]
[1750292361840,0.06921985,104930.0,104920.0,0.43601353]
[1750292362266,0.07874955,104930.0,104920.0,0.43601353]
[1750292362919,0.07874946,104930.0,104920.0,0.43601353]
[1750292363361,0.07874946,104930.0,104920.0,0.43525353]
[1750292364054,0.06921985,104930.0,104920.0,0.43525353]
[1750292364492,0.06921976,104930.0,104920.0,0.43525353]
[1750292364921,0.07874919,104930.0,104920.0,0.43525353]
[1750292365562,0.05969042,104930.0,104920.0,0.43525353]
[1750292365779,0.06921985,104930.0,104920.0,0.43525353]
[1750292365988,0.08827916,104930.0,104920.0,0.43525353]
[1750292366198,0.07874937,104930.0,104920.0,0.43525353]
[1750292367250,0.06921985,104930.0,104920.0,0.43525353]
[1750292367425,0.05969042,104930.0,104920.0,0.43525353]
[1750292367676,0.06921976,104930.0,104920.0,0.43525353]
[1750292368314,0.05969042,104930.0,104920.0,0.43525353]
[1750292368814,0.05969042,104930.0,104920.0,0.53149529]
[1750292374615,0.05969042,104930.0,104920.0,0.37529529]
[1750292374822,0.06921976,104930.0,104920.0,0.50619529]
[1750292376253,0.07874919,104930.0,104920.0,0.50619529]
[1750292376540,0.06921976,104930.0,104920.0,0.50619529]
[1750292376758,0.07874919,104930.0,104920.0,0.50619529]
[1750292376970,0.08827871,104930.0,104920.0,0.50619529]
[1750292377177,0.08827871,104930.0,104920.0,0.50615529]
[1750292377385,0.07874919,104930.0,104920.0,0.50615529]
[1750292377805,0.0882788,104930.0,104920.0,0.50615529]
[1750292378659,0.07874919,104930.0,104920.0,0.50615529]
[1750292379524,0.06921976,104930.0,104920.0,0.53345529]
[1750292379939,0.07874928,104930.0,104920.0,0.53345529]
[1750292380147,0.07874919,104930.0,104920.0,0.53345529]
[1750292380770,0.0882788,104930.0,104920.0,0.53345529]
[1750292381187,0.0882788,104930.0,104920.0,0.36776486]
[1750292381395,0.68844273,104930.0,104920.0,0.38157389]
[1750292381602,0.6533133,104930.0,104920.0,0.38157389]
[1750292382251,0.62472383,104930.0,104920.0,0.00624]
[1750292382475,4.29451506,104930.0,104920.0,0.00624]
[1750292382695,4.44711348,104930.0,104920.0,0.16276]
[1750292383135,4.44711348,104930.0,104920.0,0.15876]
[1750292383351,4.65229433,104930.0,104920.0,0.00224]
[1750292383573,4.69041402,104930.0,104920.0,0.00224]
[1750292384213,4.64758959,104930.0,104920.0,0.00224]
[1750292384434,4.65428603,104930.0,104920.0,0.00224]
[1750292384867,0.2001523,104920.0,104910.0,0.1566]
[1750292385113,3.95934708,104920.0,104910.0,0.1566]
[1750292385335,4.14681047,104910.0,104900.0,0.00953288]
[1750292385583,0.54019046,104900.0,104890.0,0.20974307]
[1750292385810,0.35906531,104900.0,104890.0,0.38536957]
[1750292386737,0.35906531,104900.0,104890.0,0.38936957]
[1750292387547,0.36859783,104900.0,104890.0,0.38936957]
[1750292387972,0.37813071,104900.0,104890.0,0.39236957]
[1750292388995,0.37865485,104900.0,104890.0,0.39236957]
[1750292389644,0.35906513,104900.0,104890.0,0.39236957]
[1750292389863,0.35906513,104900.0,104890.0,0.41756957]
[1750292390508,0.35906468,104900.0,104890.0,0.44486957]
[1750292390725,0.34,104900.0,104890.0,0.54111133]
[1750292390942,0.2,104910.0,104900.0,0.27175532]
[1750292390943,3.753239,104910.0,104900.0,0.27175532]
[1750292391164,0.028658,104920.0,104910.0,0.27053442]
[1750292391391,0.26921994,104930.0,104920.0,0.27051353]
[1750292391615,0.25969042,104930.0,104920.0,0.27051353]
[1750292392245,0.05969042,104930.0,104920.0,0.27051353]
[1750292392447,0.39969042,104930.0,104920.0,0.27051353]
[1750292393531,0.39969042,104930.0,104920.0,0.36675529]
[1750292397185,0.05969042,104930.0,104920.0,0.36675529]
[1750292400809,0.06921985,104930.0,104920.0,0.36675529]
[1750292401021,0.06921976,104930.0,104920.0,0.36675529]
[1750292401723,0.05969042,104930.0,104920.0,0.36675529]
[1750292402171,0.06921985,104930.0,104920.0,0.36675529]
[1750292402399,0.06921994,104930.0,104920.0,0.36675529]
[1750292402965,0.27888305,104930.0,104920.0,0.20015249]
[1750292403189,0.27888305,104930.0,104920.0,0.16621107]
[1750292403190,0.63515353,104930.0,104920.0,0.16621107]
[1750292403419,0.60935353,104930.0,104920.0,0.36636337]
[1750292403639,0.60935353,104930.0,104920.0,0.37589416]
[1750292404083,0.60935353,104930.0,104920.0,0.35683249]
[1750292404084,0.59982374,104930.0,104920.0,0.35683249]
[1750292404297,0.59982374,104930.0,104920.0,0.36636328]
[1750292405215,0.61888369,104930.0,104920.0,0.38542441]
[1750292405433,0.61888369,104930.0,104920.0,0.37589389]
[1750292406899,0.61888369,104930.0,104920.0,0.28542441]
[1750292407133,0.61888369,104930.0,104920.0,0.29495548]
[1750292407724,0.61888369,104930.0,104920.0,0.28542496]
[1750292407869,0.6093539,104930.0,104920.0,0.27589435]
[1750292408073,0.6093539,104930.0,104920.0,0.20968328]
[1750292408274,0.6093539,104930.0,104920.0,0.37601389]
[1750292409397,0.41875065,104930.0,104920.0,0.38554432]
[1750292409692,0.6093539,104930.0,104920.0,0.37601389]
[1750292410145,0.6093539,104930.0,104920.0,0.21921389]
[1750292410354,0.40922021,104930.0,104920.0,0.37597389]
[1750292410555,0.40922021,104930.0,104920.0,0.43810432]
[1750292410767,0.42827971,104930.0,104920.0,0.43810432]
[1750292411191,0.43780978,104930.0,104920.0,0.41220432]
[1750292412578,0.43780978,104930.0,104920.0,0.41216432]
[1750292412794,0.43780978,104930.0,104920.0,0.25544432]
[1750292413024,0.41874973,104930.0,104920.0,0.41216432]
[1750292413257,0.41874973,104930.0,104920.0,0.53440608]
[1750292413258,0.39969042,104930.0,104920.0,0.53440608]
[1750292413466,0.40921976,104930.0,104920.0,0.53440608]
[1750292413674,0.41874928,104930.0,104920.0,0.53440608]
[1750292413881,0.74587678,104930.0,104920.0,0.53440608]
[1750292414308,0.74587678,104930.0,104920.0,0.37768608]
[1750292414519,0.73634726,104930.0,104920.0,0.53436608]
[1750292414729,0.74587678,104930.0,104920.0,0.53436608]
[1750292415317,0.74587669,104930.0,104920.0,0.53436608]
[1750292415865,0.7554063,104930.0,104920.0,0.53436608]
[1750292416278,0.75540621,104930.0,104920.0,0.53436608]
[1750292417169,0.76493591,104930.0,104920.0,0.53436608]
[1750292417819,0.76493591,104930.0,104920.0,0.53440608]
[1750292418025,0.40475529,104930.0,104920.0,0.53440608]
[1750292418295,0.75540621,104930.0,104920.0,0.53440608]
[1750292418507,0.76493591,104930.0,104920.0,0.53440608]
[1750292418759,0.7744658,104930.0,104920.0,0.53440608]
[1750292418989,0.77446708,104930.0,104920.0,0.50840608]
[1750292419234,0.01906186,104920.0,104910.0,0.24233959]
[1750292419463,0.58892485,104920.0,104910.0,0.52385618]
[1750292419935,0.39830343,104920.0,104910.0,0.52385618]
[1750292420171,0.37924157,104920.0,104910.0,0.52385618]
[1750292420423,0.37924157,104920.0,104910.0,0.52485618]
[1750292420646,0.38877245,104920.0,104910.0,0.52485618]
[1750292420919,0.38877236,104920.0,104910.0,0.52485618]
[1750292421158,0.37924157,104920.0,104910.0,0.52485618]
[1750292421398,0.38877236,104920.0,104910.0,0.52485618]
[1750292422258,0.38877245,104920.0,104910.0,0.52485618]
[1750292422660,0.38877236,104920.0,104910.0,0.52485618]
[1750292422869,0.39830324,104920.0,104910.0,0.52485618]
[1750292423760,0.00953034,104920.0,104910.0,0.52485618]
[1750292423971,0.37924148,104920.0,104910.0,0.52485618]
[1750292424193,0.38877218,104920.0,104910.0,0.52485618]
[1750292424403,0.37924148,104920.0,104910.0,0.52485618]
[1750292425291,0.38877218,104920.0,104910.0,0.52485618]
[1750292425499,0.38877218,104920.0,104910.0,0.36817618]
[1750292425721,0.58892448,104920.0,104910.0,0.49000484]
[1750292425960,0.58892448,104920.0,104910.0,0.19163959]
[1750292425961,0.57939414,104920.0,104910.0,0.19163959]
[1750292426179,0.59746362,104920.0,104910.0,0.36754344]
[1750292426818,0.59746362,104920.0,104910.0,0.37707523]
[1750292427034,0.3792422,104920.0,104910.0,0.39613836]
[1750292427256,0.3792422,104920.0,104910.0,0.39613773]
[1750292427475,0.3792422,104920.0,104910.0,0.23929773]
[1750292427693,0.36971105,104920.0,104910.0,0.42357773]
[1750292427902,0.38877245,104920.0,104910.0,0.45047773]
[1750292428560,0.39830333,104920.0,104910.0,0.45047773]
[1750292429280,0.38877245,104920.0,104910.0,0.45047773]
[1750292429488,0.39830333,104920.0,104910.0,0.45047773]
[1750292430094,0.40783431,104920.0,104910.0,0.45047773]
[1750292430214,0.59845637,104920.0,104910.0,0.43141496]
[1750292430416,0.21921435,104920.0,104910.0,0.37711496]
[1750292430618,0.57939497,104920.0,104910.0,0.41404639]
[1750292431108,0.37924211,104920.0,104910.0,0.41404639]
[1750292431298,0.37924211,104920.0,104910.0,0.42357773]
[1750292431502,0.37924157,104920.0,104910.0,0.45117773]
[1750292431676,0.38877236,104920.0,104910.0,0.45117773]
[1750292432197,0.39830324,104920.0,104910.0,0.45117773]
[1750292433213,0.40783422,104920.0,104910.0,0.45117773]
[1750292434535,0.59845564,104920.0,104910.0,0.43211496]
[1750292434720,0.22874468,104920.0,104910.0,0.41404657]
[1750292434937,0.39830388,104920.0,104910.0,0.42357755]
[1750292435088,0.3887729,104920.0,104910.0,0.45137755]
[1750292435287,0.37924202,104920.0,104910.0,0.45137755]
[1750292435681,0.3887729,104920.0,104910.0,0.45137755]
[1750292436729,0.37924157,104920.0,104910.0,0.45137755]
[1750292436957,0.36971096,104920.0,104910.0,0.45137755]
[1750292437193,0.37924148,104920.0,104910.0,0.45137755]
[1750292437436,0.36971096,104920.0,104910.0,0.45137755]
[1750292437862,0.37924148,104920.0,104910.0,0.45137755]
[1750292439114,0.36971096,104920.0,104910.0,0.45137755]
[1750292439546,0.36018062,104920.0,104910.0,0.54761931]
[1750292440852,0.36971096,104920.0,104910.0,0.54761931]
[1750292441480,0.36971087,104920.0,104910.0,0.54761931]
[1750292442816,0.39522668,104930.0,104920.0,0.21921353]
[1750292443025,0.7554073,104930.0,104920.0,0.21921353]
[1750292443230,0.75491392,104930.0,104920.0,0.21921353]
[1750292443431,0.75491392,104930.0,104920.0,0.27011353]
[1750292444101,0.76161679,104930.0,104920.0,0.27011353]
[1750292444509,0.7636167,104930.0,104920.0,0.27011353]